Cogmind - Beta 14 @@@ ROGUE MODE // 2025.03.17 @ 17:16:04 Player: s o o t h s a y e r Result: Destroyed by Y-45 Defender with Heavy Assault Rifle Performance ------------- Evolutions (0) 0 Regions Visited (2) 400 Robots Destroyed (52) 260 Value Destroyed (585) 585 Prototype IDs (0) 0 Alien Tech Used (0) 0 Bonus (0) 0 TOTAL SCORE: 1245 Bonus ------- None Cogmind --------- Core Integrity 0/250 Matter 300/300 Energy 248/250 System Corruption 0% Temperature Cool (10) Movement Treading (320) Ox2 Location -10/Mines Parts ------- > --- POWER (1) -------- Ion Engine > --- PROPULSION (2) --- Light Treads > --- UTILITY (2) ------ High-capacity Storage Unit Targeting Computer > --- WEAPON (2) ------- Particle Gun Particle Gun > --- INVENTORY (20) --- Signal Interpreter Targeting Computer Targeting Computer Targeting Computer Targeting Computer Hacking Suite Mining Laser Peak State ------------ > --- POWER ------------ Ion Engine > --- PROPULSION ------- Light Treads Light Treads > --- UTILITY ---------- Targeting Computer Targeting Computer > --- WEAPON ----------- Particle Gun Particle Gun > --- INVENTORY -------- Small Storage Unit Small Storage Unit Seismic Detector [Rating: 9] Favorites ----------- Power Ion Engine Engine Ion Engine Propulsion Light Treads Treads Light Treads Utility Targeting Computer Device Seismic Detector Storage High-capacity Storage Unit Processor Targeting Computer Protection Backup Plating I Weapon Particle Gun Energy Gun Particle Gun Ballistic Gun Assault Rifle Build | -11 -10 -10 ------- Run | Yrd Mat Min Slots Evolved . | . . . Power . | . . . Propulsion . | . . . Utility . | . . . Weapon . | . . . Parts Attached 17 | 6 11 . Power 2 | 1 1 . Engine 2 | 1 1 . Core . | . . . Reactor . | . . . Propulsion 4 | 2 2 . Treads 4 | 2 2 . Leg . | . . . Wheel . | . . . Hover . | . . . Flight . | . . . Utility 5 | 1 4 . Device 1 | 1 . . Storage 1 | . 1 . Processor 2 | . 2 . Hackware . | . . . Protection 1 | . 1 . Artifact . | . . . Weapon 6 | 2 4 . Energy Gun 4 | . 4 . Energy Cannon . | . . . Ballistic Gun 2 | 2 . . Ballistic Cannon . | . . . Launcher . | . . . Special Weapon . | . . . Impact Weapon . | . . . Slashing Weapon . | . . . Piercing Weapon . | . . . Special Melee Weapon . | . . . Unidentified Prototypes . | . . . Parts Lost 4 | . 3 1 Power 1 | . 1 . Propulsion 1 | . . 1 Utility 1 | . 1 . Weapon 1 | . 1 . Highest Loss Streak 1 | . 1 1 To Critical Strikes . | . . . Average Slot Usage (%) 95 | . 95 98 Engine 12 | . 12 14 Treads 27 | . 28 26 Device 1 | . 1 . Storage 2 | . . 14 Processor 20 | . 21 14 Protection 1 | . 1 . Energy Gun 20 | . 19 28 Ballistic Gun 7 | . 8 . Peak Build Rating 9 | 6 9 9 Average Rating 7 | 4 8 8 On Entrance 5 | . 6 9 Naked Turns . | . . . Heaviest Build 51 | 7 51 51 Greatest Support 40 | 40 40 40 Greatest Overweight (x) 2 | . 1 2 Average Overweight (x) . | . . 1 Largest Inventory Capacity 20 | 5 20 20 Average Capacity 7 | 5 6 20 Most Carried 7 | 5 7 7 Average Carried 4 | 2 4 7 Final Capacity 20 | 5 20 20 Final Carried 7 | 2 7 7 Class Distribution -------------------- 100% | Mutant Dominant Class ---------------- Mutant | -10/Materials Mutant | -10/Mines Resources | -11 -10 -10 ----------- Run | Yrd Mat Min Matter Collected 612 | 300 312 . Remotely . | . . . Salvage Created 2026 | 191 1555 280 Parts 125 | 12 95 18 Haulers Intercepted 2 | . 2 . Recyclers Shooed 7 | . 6 1 Parts Field Recycled . | . . . Retrieved Matter . | . . . Parts Self-Destructed . | . . . Prevented . | . . . Kills | -11 -10 -10 ------- Run | Yrd Mat Min Combat Hostiles Destroyed 19 | . 13 6 Guns 19 | . 13 6 Classes Destroyed 10 | 3 6 1 Worker 5 | 2 3 . Builder 1 | . . 1 Tunneler 4 | 3 . 1 Hauler 2 | . 2 . Recycler 16 | 1 13 2 Mechanic 1 | . 1 . Operator 1 | . 1 . Watcher 3 | . 3 . Swarmer 13 | . 7 6 Grunt 6 | . 6 . Best Kill Streak 5 | 4 5 3 Combat Bots Only 3 | . 3 3 Max Kills in Single Turn 2 | 1 2 2 Gunslinging 1 | . 1 . Exploded . | . . . Melee . | . . . Uniques/NPCs Destroyed . | . . . Combat | -11 -10 -10 -------- Run | Yrd Mat Min Hostile Shots Fired 127 | . 76 51 Missed 32 | . 16 16 Damage Taken 1173 | . 779 394 Core 256 | . 209 47 Absorbed by Shields . | . . . Core Remaining (%) 100 | 100 . . Volleys Fired 122 | 15 85 22 Largest 2 | 2 2 2 Hottest 130 | 40 130 130 Shots Fired 224 | 30 165 29 Gun 224 | 30 165 29 Cannon . | . . . Launcher . | . . . Special . | . . . Kinetic 127 | 30 97 . Thermal 97 | . 68 29 Explosive . | . . . Electromagnetic . | . . . Robot Hit Streak 13 | 5 13 6 Robot Miss Streak 5 | 2 5 3 Penetration Max . | . . . Secondary Targets 4 | . 4 . Max Gunslinging Chain 1 | . 1 . Shots Hit Robots 141 | 16 109 16 Core Hits 72 | 8 53 11 Critical Kills 1 | . 1 . Critical Parts Destroyed 1 | 1 . . Critical Strikes 4 | 1 1 2 Burn 2 | . . 2 Destroy 2 | 1 1 . Melee Attacks . | . . . Impact . | . . . Slashing . | . . . Piercing . | . . . Sneak Attacks . | . . . Combat Hostiles . | . . . Follow-up Attacks . | . . . Damage Inflicted 1823 | 181 1366 276 Guns 1823 | 181 1366 276 Cannons . | . . . Explosions . | . . . Melee . | . . . Ramming . | . . . Kinetic 848 | 181 667 . Thermal 975 | . 699 276 Explosive . | . . . Electromagnetic . | . . . Impact . | . . . Slashing . | . . . Piercing . | . . . Highest Corruption . | . . . Average Corruption . | . . . Corruption Purged . | . . . Corruption Blocked . | . . . Overload Shots . | . . . Overflow Damage . | . . . Projectiles . | . . . Explosions . | . . . Melee . | . . . Knockbacks . | . . . Impact . | . . . Kinetic . | . . . Secondary . | . . . Self-Inflicted Damage . | . . . Shots . | . . . Rammed 1 | . 1 . Targets Rammed 1 | . 1 . Kicked . | . . . Crushed . | . . . Highest Temperature 345 | . 207 345 Average Temperature 68 | . 48 126 Received Heat Transfer 315 | . 234 81 Effects 3 | . . 3 Interference 3 | . . 3 Siege Activations . | . . . Robots Corrupted . | . . . Combat Hostiles . | . . . Parts Fried . | . . . Impact Corruptions . | . . . Robots Melted . | . . . Combat Hostiles . | . . . Parts Melted 4 | . 3 1 Heat Transferred 2479 | . 1665 814 Parts Sabotaged . | . . . Parts Stolen . | . . . Parts Stripped . | . . . Power Chain Reactions . | . . . Alert | -11 -10 -10 ------- Run | Yrd Mat Min Peak Influence 218 | 30 198 218 Initial 43 | . 19 43 Average 62 | 8 56 119 Maximum Alert Level 1 | . . 1 Low Security (%) 97 | 100 100 79 Level 1 2 | . . 20 Level 2 . | . . . Level 3 . | . . . Level 4 . | . . . Level 5 . | . . . High Security . | . . . Max Security . | . . . Squads Dispatched 1 | . 1 . Investigation . | . . . Extermination . | . . . Reinforcement 1 | . 1 . Assault . | . . . Garrison . | . . . Intercept . | . . . Searches Triggered . | . . . Construction Impeded . | . . . Haulers Reinforced . | . . . Active Scanning Responses . | . . . Cargo Convoy Interrupts . | . . . Stealth | -11 -10 -10 --------- Run | Yrd Mat Min Distress Signals 1 | . 1 . Communications Jammed . | . . . Distress Signals . | . . . Times Spotted 41 | . 33 8 Peak Tracking Total 4 | . 4 3 Tactical Retreats . | . . . Traps | -11 -10 -10 ------- Run | Yrd Mat Min Traps Triggered . | . . . Indirectly . | . . . Trap Hack Attempts . | . . . Triggered . | . . . Disarmed . | . . . Reprogrammed . | . . . Reused . | . . . Traps Extracted . | . . . Installed . | . . . Triggered . | . . . Machines | -11 -10 -10 ---------- Run | Yrd Mat Min Machines Disabled 1 | . 1 . Max in Single Turn 1 | . 1 . Machines Repaired . | . . . Machines Dismantled . | . . . Machines Sabotaged . | . . . Overloaded Fab Kills . | . . . Hacking | -11 -10 -10 --------- Run | Yrd Mat Min Machines Accessed 5 | . 4 1 Terminals 5 | . 4 1 Fabricators . | . . . Repair Stations . | . . . Recycling Units . | . . . Scanalyzers . | . . . Garrison Access . | . . . Total Hacks 7 | . 5 2 Successful 6 | . 5 1 Failed 1 | . . 1 Catastrophic . | . . . Database Lockouts . | . . . Manual . | . . . Terminals 7 | . 5 2 Fabricators . | . . . Repair Stations . | . . . Recycling Units . | . . . Scanalyzers . | . . . Garrison Access . | . . . Terminal Hacks 6 | . 5 1 Branch Access Points 1 | . 1 . Alert Level 1 | . 1 . Locate Traps 1 | . 1 . Hauler Manifests 1 | . 1 . Zone Layout 2 | . 1 1 Fabricator Hacks . | . . . Repair Station Hacks . | . . . Recycling Unit Hacks . | . . . Scanalyzer . | . . . Garrison Access Hacks . | . . . Unauthorized Hacks . | . . . Terminals . | . . . Fabricators . | . . . Repair Stations . | . . . Recycling Units . | . . . Scanalyzers . | . . . Garrison Access . | . . . Data Cores Recovered . | . . . Used . | . . . Hacking Detections 4 | . 3 1 Full Trace Events . | . . . Feedback Events . | . . . Feedback Blocked . | . . . Robot Schematics Acquired . | . . . Robots Built . | . . . Authchips . | . . . Time . | . . . Total Robot Build Rating . | . . . Part Schematics Acquired . | . . . Parts Built . | . . . Authchips . | . . . Time . | . . . Total Part Build Rating . | . . . Parts Repaired . | . . . Time . | . . . Parts Recycled . | . . . Recycled Matter . | . . . Retrieved Matter . | . . . Retrieved Components . | . . . Parts Scanalyzed . | . . . Part Schematics Acquired . | . . . Parts Damaged . | . . . Bothacking | -11 -10 -10 ------------ Run | Yrd Mat Min Used RIF Installer . | . . . Robots Hacked . | . . . Non-combat . | . . . Combat . | . . . Robot Hacks Applied . | . . . Relay Couplers Released . | . . . Fabnet Peak Effective % . | . . . Robots Rewired . | . . . Allies Hacked . | . . . Hacks Repelled . | . . . Allies | -11 -10 -10 -------- Run | Yrd Mat Min Total Allies . | . . . Largest Group . | . . . Highest-Rated Group . | . . . Highest-Rated Ally . | . . . Total Orders . | . . . Ally Attacks . | . . . Total Damage . | . . . Kills . | . . . Allies Corrupted . | . . . Allies Melted . | . . . Intel | -11 -10 -10 ------- Run | Yrd Mat Min Robot Analysis Total . | . . . Derelict Logs Recovered . | . . . Drone Launches . | . . . Drone Recoveries . | . . . Exploration | -11 -10 -10 ------------- Run | Yrd Mat Min Turns Passed 2449 | 139 1963 347 Spaces Moved 1214 | 64 1029 121 Core 16 | 16 . . Treads 1198 | 48 1029 121 Legs . | . . . Wheels . | . . . Hover . | . . . Flight . | . . . Fastest Speed 50 | 50 160 240 Average Speed 170 | 132 164 246 Slowest Speed 320 | 160 240 320 Overloaded Moves . | . . . Propulsion Burnouts . | . . . Robots Hopped . | . . . Cave-ins Triggered . | . . . Exploration Rate (%) 36 | 5 81 22 Regions Visited 2 Branch Regions 1 Pre-discovered Areas . | . . . Known Exits Taken 1 | . 1 . Unknown Exits Taken 1 | 1 . . Scrap Searched . | . . . Spaces Dug . | . . . Terrain Destroyed . | . . . Melee . | . . . Projectile . | . . . AOE . | . . . Terrain Rammed . | . . . Walls Destroyed . | . . . Machines Disabled . | . . . Actions | -11 -10 -10 --------- Run | Yrd Mat Min Total 1384 | 90 1151 143 Wait 4 | . 4 . Move 1212 | 63 1028 121 Hop . | . . . Pick Up 19 | 6 13 . Fast Attach 3 | 2 1 . Attach 8 | 4 4 . Detach 1 | . 1 . Swap 6 | . 6 . Drop 8 | . 8 . Fire 122 | 15 85 22 Melee . | . . . Ram . | . . . Kick . | . . . Crush 1 | . 1 . Escape Stasis . | . . . Rewire . | . . . Trap . | . . . Miscellaneous . | . . . Route ------- -11/Scrapyard -10/Materials (discovered 3 exits: [*Mat x2] / *Min) -10/Mines (discovered 1 exit: [*Mat]) History --------- Turn | Location | Event 28 | -11/Scrapyard | Discovered new exit (range 15) 140 | -11/Scrapyard | Entered Materials 310 | -10/Materials | Build established: Mutant 493 | -10/Materials | Core integrity fell below 50% 520 | -10/Materials | Discovered new exit (range 11) 755 | -10/Materials | Discovered new exit (range 15) 1012 | -10/Materials | Discovered new exit (range 16) 1451 | -10/Materials | Identified exit to Mines 1865 | -10/Materials | Core integrity fell below 20% 2103 | -10/Materials | Entered Mines 2177 | -10/Mines | Discovered new exit (range 8) 2450 | -10/Mines | Destroyed by Y-45 Defender with Heavy Assault Rifle Last Messages --------------- Overheating: System interference. Particle Gun temporarily disabled. Connecting with Terminal... >>Layout(Zone) Retrieving Zone 1D layout... Downloaded map data. T-07 Excavator suffers critical hit (Burn). T-07 Excavator destroyed. R-06 Scavenger destroyed. T-07 Excavator is excavating. U-05 Engineer lays Concrete. U-05 Engineer builds a Wall. S-10 Pest destroyed. R-06 Scavenger collects Flight Unit. S-10 Pest suffers critical hit (Burn). R-06 Scavenger collects Lgt. Ion Engine. S-10 Pest destroyed. K-01 Serf collects debris. Lgt. Treads destroyed. U-05 Engineer destroyed. Map ----- +----------------------------------------------------+ | ????????????????????????????????????????????? | | ????????????????????????????????????????????? | | ????????????????????????????????????????????? | | ????????????????????????????????????????????? | | ????????????????????????????????????????????? | | ????????????????????????????????????????????? | | ????????????????????????????????????????????? | | ????????????????????????????????????????????? | | ????????????????????????????????????????????? | | ????????????????????????????????????????????? | | ????????????######??????????????????????????? | | ???????????##" "##???????????????########??? | | ???????????#[! !/#???????????????# #??? | | ????????????[! !!#???????????????# ##?? | | ????????????? #????????????????# ! ! ##? | | ???# ########//####??????????????# ! #? | | ???# ##?????????????# ! ! #? | | ???# #?????????????# #? | | ???##### ### #?????????????## #? | | ???????????### ##?????########## #? | | ?????????????## ##??????# ##? | | ??????????????## #???????# ######## ##?? | | ???????????????# #######?# #??????## #??? | | ???????????????# Y%Y #?# ##??????## #?? | | ????# #????????# *[ ### ##??????# #?? | | ????# #????????#######!%|@ #??????## #?? | | ??### #??????????????##### #???????#####?? | | ??# #?????????????????## ##?????????????? | | ??# ###????????????????##% %##??????????????? | | ??# #?????????????????## #???????????????? | | ### #?????????????????# ##??????????????? | | #?????############# #??????????????? | | #####?????# #######????????? | | ######?#### = ## ## #????????? | | #?#%% % ########## #?????????? | | """ #?#=## < #????????# #?????????? | | """[###=## #????????## # ##?????????? | | """=%[%*##########?????????######??????????? | | =#####??????????????????????????????????? | | ####T#??????????????????????????????????????? | | ???###??????????????????????????????????????? | | ????????????????????????????????????????????? | | ????????????????????????????????????????????? | | ????????????????????????????????????????????? | | | | | | | | | | | | | +----------------------------------------------------+ Best States ------------- Heat Dissipation 25 Energy Generation 10 Energy Capacity 250 Matter Stores 300 Matter Capacity 300 Sight Range 16 Terrain Scan Density 10 Armor Coverage 80 Evasion (%) 40 Targeting Accuracy 10 Recoil Reduction 2 Item Schematics ----------------- None Robot Schematics ------------------ None Fabricated ------------ Nothing Alien Tech Used ----------------- None Achievements -------------- None Challenges ------------ None Game ------ Seed ReinforcedSuperchargedCloak Manual? 0 Play Time 00:15:35 Cumulative 15.1 hours Start 2025.03.17 @ 16:52:59 End 2025.03.17 @ 17:16:04 Sessions 1 Manual Loads 0 Difficulty Rogue Special Mode None Game No. 13 Rogue 2 Adventurer 11 Explorer 0 Win Type - Total 1 Types 1/0/0/0/0/0/0/0/0 Lore% 6 Gallery% 20 Achievement% 24 Wizard Run 0 Options --------- Layout 1 ASCII 0 Keyboard 0 Movement Mouse Keybinds 0 Fullscreen 2 Font 24/Proggy Map View 50x35 Zoom Use 9% Tactical HUD 0 Map Filters NONE Filters NONE Steam 1 RUN: 3d060694-6ec2-4a59-b8ea-7624cbe05ab5